bitfinex/quotes_BTCUSD_20230907
["timestamp","ask_amount","ask_price","bid_price","bid_amount"]
[1694102032542,1.74101824,25793.0,25792.0,0.03693699]
[1694102032700,1.74053824,25793.0,25792.0,0.03693699]
[1694102032898,1.74011824,25793.0,25792.0,0.03693699]
[1694102033201,1.74023824,25793.0,25792.0,0.03693699]
[1694102033373,1.74035824,25793.0,25792.0,0.03693699]
[1694102033580,1.74047824,25793.0,25792.0,0.03693699]
[1694102033795,1.74071824,25793.0,25792.0,0.03693699]
[1694102034001,1.74101824,25793.0,25792.0,0.03693699]
[1694102034195,1.74113824,25793.0,25792.0,0.03693699]
[1694102034395,1.74089824,25793.0,25792.0,0.03693699]
[1694102034624,1.74023824,25793.0,25792.0,0.03693699]
[1694102034827,1.74113824,25793.0,25792.0,0.03693699]
[1694102034996,1.74125824,25793.0,25792.0,0.03693699]
[1694102035155,1.74137824,25793.0,25792.0,0.03693699]
[1694102035361,1.60221141,25793.0,25792.0,0.03693699]
[1694102035563,1.60299141,25793.0,25792.0,0.03693699]
[1694102035772,1.60323141,25793.0,25792.0,0.03693699]
[1694102036024,1.60329141,25793.0,25792.0,0.03693699]
[1694102036223,1.60341141,25793.0,25792.0,0.03693699]
[1694102036397,1.60347141,25793.0,25792.0,0.03693699]
[1694102036596,1.7429717,25793.0,25792.0,0.03693699]
[1694102036801,1.7430917,25793.0,25792.0,0.03693699]
[1694102037197,1.7432717,25793.0,25792.0,0.03693699]
[1694102037401,1.60413141,25793.0,25792.0,0.03693699]
[1694102037759,1.60437141,25793.0,25792.0,0.03693699]
[1694102037877,1.60443141,25793.0,25792.0,0.03693699]
[1694102038079,1.60455141,25793.0,25792.0,0.03693699]
[1694102038320,1.65120624,25793.0,25792.0,0.03693699]
[1694102038541,1.65132624,25793.0,25792.0,0.03693699]
[1694102038740,1.65138624,25793.0,25792.0,0.03693699]
[1694102039005,1.65156624,25793.0,25792.0,0.03693699]
[1694102039195,1.65162624,25793.0,25792.0,0.03693699]
[1694102039394,1.64994624,25793.0,25792.0,0.03693699]
[1694102039609,1.64970624,25793.0,25792.0,0.03693699]
[1694102039778,1.64940624,25793.0,25792.0,0.03693699]
[1694102039984,1.64916624,25793.0,25792.0,0.03693699]
[1694102040301,1.64498624,25793.0,25792.0,0.03593699]
[1694102040503,1.64492624,25793.0,25792.0,0.03593699]
[1694102040654,1.64862624,25793.0,25792.0,0.03593699]
[1694102040853,1.41230915,25793.0,25792.0,0.03493699]
[1694102041061,1.40818915,25793.0,25792.0,0.03493699]
[1694102041260,1.41130915,25793.0,25792.0,0.03593699]
[1694102041503,1.41040915,25793.0,25792.0,0.03593699]
[1694102041712,1.41268915,25793.0,25792.0,0.03593699]
[1694102041911,1.41106915,25793.0,25792.0,0.03593699]
[1694102042179,1.41034915,25793.0,25792.0,0.03593699]
[1694102042335,1.40938915,25793.0,25792.0,0.03593699]
[1694102042546,1.40908915,25793.0,25792.0,0.03593699]
[1694102043069,1.64146122,25793.0,25792.0,0.03593699]
[1694102044737,1.40908915,25793.0,25792.0,0.03593699]
[1694102045410,1.40884915,25793.0,25792.0,0.03593699]
[1694102045639,1.64144993,25793.0,25792.0,0.03593699]
[1694102045858,1.64138993,25793.0,25792.0,0.03593699]
[1694102046302,1.64144993,25793.0,25792.0,0.03593699]
[1694102047176,1.64138993,25793.0,25792.0,0.03593699]
[1694102047607,1.64132993,25793.0,25792.0,0.03593699]
[1694102047952,1.64126993,25793.0,25792.0,0.03593699]
[1694102048158,1.64174993,25793.0,25792.0,0.03593699]
[1694102048535,1.63184993,25793.0,25792.0,0.03593699]
[1694102048773,1.63982993,25793.0,25792.0,0.03593699]
[1694102049002,1.64210993,25793.0,25792.0,0.03593699]
[1694102049233,1.64144993,25793.0,25792.0,0.03593699]
[1694102049471,1.64126993,25793.0,25792.0,0.03593699]
[1694102049710,1.64120993,25793.0,25792.0,0.03593699]
[1694102049937,1.64084993,25793.0,25792.0,0.03593699]
[1694102050166,1.64114993,25793.0,25792.0,0.03593699]
[1694102050413,1.64120993,25793.0,25792.0,0.03593699]
[1694102050634,1.64156993,25793.0,25792.0,0.03593699]
[1694102050899,1.64126993,25793.0,25792.0,0.03593699]
[1694102051366,1.63982993,25793.0,25792.0,0.03593699]
[1694102051577,1.63994993,25793.0,25792.0,0.03593699]
[1694102051805,0.32087271,25793.0,25792.0,2.36223899]
[1694102052036,0.15218877,25793.0,25792.0,2.48283899]
[1694102053743,0.15218877,25793.0,25792.0,2.48183899]
[1694102054180,0.15218877,25793.0,25792.0,2.48983899]
[1694102054838,0.15218877,25793.0,25792.0,2.48183899]
[1694102055075,0.15218877,25793.0,25792.0,2.49883899]
[1694102055308,0.15218877,25793.0,25792.0,2.38723899]
[1694102055549,0.33804053,25793.0,25792.0,2.37023899]
[1694102055772,0.33804053,25793.0,25792.0,2.36123899]
[1694102056028,0.33804053,25793.0,25792.0,2.41123899]
[1694102056239,0.15218877,25793.0,25792.0,1.63580499]
[1694102056908,0.15218877,25793.0,25792.0,1.61080499]
[1694102058064,0.15218877,25793.0,25792.0,1.67580499]
[1694102058303,0.24509148,25793.0,25792.0,1.67580499]
[1694102058534,0.24509148,25793.0,25792.0,1.65080499]
[1694102059502,0.24509148,25793.0,25792.0,1.67580499]
[1694102061441,0.10569464,25793.0,25792.0,1.67580499]
[1694102061668,0.24509148,25793.0,25792.0,1.67580499]
[1694102061897,0.23229955,25793.0,25792.0,1.67580499]
[1694102065477,0.23229955,25793.0,25792.0,1.63580499]
[1694102065702,0.23229955,25793.0,25792.0,1.67580499]
[1694102067083,0.13939684,25793.0,25792.0,1.67580499]
[1694102068396,0.23230913,25793.0,25792.0,1.67580499]
[1694102069951,0.13939684,25793.0,25792.0,1.67580499]
[1694102070861,0.4904486,25793.0,25792.0,0.12493699]
[1694102077307,0.37392142,25793.0,25792.0,0.12493699]
[1694102077549,0.35105176,25793.0,25792.0,0.12493699]
[1694102078881,0.35105176,25793.0,25792.0,0.90037099]
[1694102079842,0.35105176,25793.0,25792.0,1.67580499]
[1694102080383,0.49046949,25793.0,25792.0,1.67580499]
[1694102080839,0.35105176,25793.0,25792.0,1.67580499]
[1694102088540,0.30459966,25793.0,25792.0,1.67580499]
[1694102088921,0.49045142,25793.0,25792.0,1.67580499]
[1694102090015,0.30459966,25793.0,25792.0,1.67580499]
[1694102091454,0.30459966,25793.0,25792.0,1.65580499]
[1694102091674,0.30459966,25793.0,25792.0,1.67580499]
[1694102091883,0.49045142,25793.0,25792.0,1.67580499]
[1694102092758,0.35105176,25793.0,25792.0,1.67580499]
[1694102093936,0.49044252,25793.0,25792.0,1.67580499]
[1694102094365,0.49044305,25793.0,25792.0,1.67580499]
[1694102094577,0.37392041,25793.0,25792.0,1.67580499]
[1694102094729,0.37392041,25793.0,25792.0,0.90037099]
[1694102097168,0.35105176,25793.0,25792.0,0.90037099]
[1694102098362,0.49048789,25793.0,25792.0,0.90037099]
[1694102099028,0.37392755,25793.0,25792.0,0.90037099]
[1694102099785,0.37392755,25793.0,25792.0,0.86037099]
[1694102099985,0.35105176,25793.0,25792.0,0.90037099]
[1694102101188,0.37392609,25793.0,25792.0,0.90037099]
[1694102101389,0.60628687,25793.0,25792.0,0.12493699]
[1694102101730,2.65363834,25793.0,25792.0,0.12493699]
[1694102101929,2.58829834,25793.0,25792.0,0.12493699]
[1694102102210,3.36370234,25793.0,25792.0,0.12493699]
[1694102102546,2.58829834,25793.0,25792.0,0.12493699]
[1694102105413,3.12057955,25793.0,25792.0,0.12493699]
[1694102105623,3.37411173,25793.0,25792.0,0.12493699]
[1694102105840,3.37321173,25793.0,25792.0,0.12493699]
[1694102106043,3.37135173,25793.0,25792.0,0.12493699]
[1694102106248,3.14099955,25793.0,25792.0,0.09993699]
[1694102106459,3.38448696,25793.0,25792.0,0.09993699]
[1694102106666,3.38574696,25793.0,25792.0,0.09993699]
[1694102106870,3.38220696,25793.0,25792.0,0.09993699]
[1694102107046,3.38226696,25793.0,25792.0,0.09993699]
[1694102107253,3.38106696,25793.0,25792.0,0.09993699]
[1694102107453,3.38040696,25793.0,25792.0,0.12493699]
[1694102107643,2.60476296,25793.0,25792.0,0.07493699]
[1694102107837,2.60428296,25793.0,25792.0,0.07493699]
[1694102108200,2.60440296,25793.0,25792.0,0.09293699]
[1694102108433,2.60422296,25793.0,25792.0,0.10993699]
[1694102108611,2.60338296,25793.0,25792.0,0.10993699]
[1694102108810,2.60350296,25793.0,25792.0,0.10993699]
[1694102109046,2.60266296,25793.0,25792.0,0.10993699]
[1694102109222,2.60302296,25793.0,25792.0,0.10993699]
[1694102109528,2.59510296,25793.0,25792.0,0.10993699]
[1694102109780,2.59210296,25793.0,25792.0,0.10993699]
[1694102109983,2.59150296,25793.0,25792.0,0.10993699]
[1694102110206,2.59186296,25793.0,25792.0,0.10993699]
[1694102110382,2.59180296,25793.0,25792.0,0.10993699]
[1694102110586,2.59192296,25793.0,25792.0,0.10993699]
[1694102110762,2.59186296,25793.0,25792.0,0.10993699]
[1694102110966,2.59450296,25793.0,25792.0,0.10993699]
[1694102111168,2.59618296,25793.0,25792.0,0.10993699]
[1694102111325,2.59228296,25793.0,25792.0,0.10993699]
[1694102111535,2.59156296,25793.0,25792.0,0.10993699]
[1694102111747,2.59114296,25793.0,25792.0,0.10993699]
[1694102111948,2.59108296,25793.0,25792.0,0.10993699]
[1694102112308,2.59102296,25793.0,25792.0,0.10993699]
[1694102112483,2.82275236,25793.0,25792.0,0.10993699]
[1694102112691,2.70239236,25793.0,25792.0,0.10993699]
[1694102112873,2.70233236,25793.0,25792.0,0.10993699]
[1694102113072,2.70221236,25793.0,25792.0,0.10993699]
[1694102113272,0.88353695,25793.0,25792.0,0.10993699]
[1694102113489,0.25811393,25793.0,25792.0,1.86140499]
[1694102113687,0.1652,25793.0,25792.0,2.93683899]
[1694102113890,0.1652,25793.0,25792.0,2.97558899]
[1694102114842,0.0197,25795.0,25792.0,2.95758899]
[1694102115051,0.0197,25795.0,25794.0,0.1206]
[1694102115277,0.0197,25795.0,25794.0,3.29703299]
[1694102116537,0.0197,25795.0,25794.0,3.17643299]
[1694102117372,0.0197,25795.0,25794.0,3.20143299]
[1694102118197,0.0197,25795.0,25794.0,3.22643299]
[1694102120061,0.09291393,25796.0,25794.0,3.34703299]
[1694102120276,0.48146715,25796.0,25795.0,0.07493699]
[1694102120481,0.48146715,25796.0,25795.0,2.40096899]
[1694102121514,0.38855322,25796.0,25795.0,2.40096899]
[1694102121921,0.38855322,25796.0,25795.0,2.41796899]
[1694102123381,0.38855322,25796.0,25795.0,2.43396899]
[1694102124012,0.39488483,25797.0,25795.0,2.43396899]
[1694102124221,0.62083805,25797.0,25795.0,2.43396899]
[1694102124420,0.23228483,25797.0,25795.0,2.43396899]
[1694102124857,0.23326989,25798.0,25795.0,2.41796899]
[1694102125076,0.62182311,25798.0,25795.0,2.41796899]
[1694102125294,0.62182311,25798.0,25797.0,0.03493699]
[1694102125489,0.62182311,25798.0,25797.0,1.58550299]
[1694102125696,0.62083805,25798.0,25797.0,1.58550299]
[1694102125898,0.48146715,25798.0,25797.0,1.58550299]
[1694102126104,0.62183805,25798.0,25797.0,1.58550299]
[1694102126539,0.78303805,25798.0,25797.0,1.58550299]
[1694102127163,1.02510195,25798.0,25797.0,1.58550299]
[1694102127582,0.78303805,25798.0,25797.0,1.58550299]
[1694102128194,0.78203805,25798.0,25797.0,1.58550299]
[1694102128579,0.64266715,25798.0,25797.0,1.58550299]
[1694102129731,0.64366715,25798.0,25797.0,1.58550299]
[1694102132537,0.66269351,25798.0,25797.0,1.58550299]
[1694102133709,0.66169351,25798.0,25797.0,1.58550299]
[1694102133947,0.66169351,25798.0,25797.0,1.61050299]
[1694102135268,0.66169351,25798.0,25797.0,1.63550299]
[1694102137353,0.56877958,25798.0,25797.0,1.63550299]
[1694102146306,0.56877958,25798.0,25797.0,0.86021999]
[1694102151745,0.66169351,25798.0,25797.0,0.86021999]
[1694102154747,0.80106441,25798.0,25797.0,0.86021999]
[1694102155760,0.70815048,25798.0,25797.0,0.86021999]
[1694102155992,0.80095364,25798.0,25797.0,0.86021999]
[1694102156228,0.70815048,25798.0,25797.0,0.86021999]
[1694102157618,0.77787141,25798.0,25797.0,0.86021999]
[1694102158355,0.75460116,25798.0,25797.0,0.86021999]
[1694102158574,0.82392399,25798.0,25797.0,0.86021999]
[1694102160406,0.82392399,25798.0,25797.0,0.08493699]
[1694102164642,0.59165459,25798.0,25797.0,0.08493699]
[1694102170384,0.58665459,25798.0,25797.0,0.08493699]
[1694102173705,0.58165459,25798.0,25797.0,0.08493699]
[1694102175173,0.58165459,25798.0,25797.0,0.12493699]
[1694102175174,0.11210273,25798.0,25797.0,0.12493699]
[1694102175380,0.01902636,25798.0,25797.0,2.57138599]
[1694102175611,0.11209904,25798.0,25797.0,3.68541899]
[1694102175803,0.56300087,25798.0,25797.0,0.16368699]
[1694102176009,1.06222999,25798.0,25797.0,0.16368699]
[1694102176308,1.00232614,25798.0,25797.0,0.16368699]
[1694102176508,0.74373932,25798.0,25797.0,0.93896999]
[1694102176719,0.74373932,25798.0,25797.0,1.71425299]
[1694102178142,0.88331656,25798.0,25797.0,1.68925299]
[1694102179062,0.74373932,25798.0,25797.0,1.71425299]
[1694102179278,0.88332561,25798.0,25797.0,1.68925299]
[1694102179501,0.88332561,25798.0,25797.0,1.71425299]
[1694102179714,0.88332561,25798.0,25797.0,1.68925299]
[1694102181435,0.88332561,25798.0,25797.0,1.71425299]
[1694102183328,0.69719402,25798.0,25797.0,1.71425299]
[1694102185788,0.69719402,25798.0,25797.0,2.48953599]
[1694102186001,0.11032091,25798.0,25797.0,2.61013599]
[1694102186205,0.01725451,25798.0,25797.0,2.61013599]
[1694102186830,0.23265269,25799.0,25798.0,0.07368699]
[1694102187046,0.62120591,25799.0,25798.0,2.39944599]
[1694102187249,0.52813951,25799.0,25798.0,2.39944599]
[1694102188142,0.62118765,25799.0,25798.0,2.42444599]
[1694102188334,0.52813951,25799.0,25798.0,2.42444599]
[1694102188708,0.62118673,25799.0,25798.0,2.42444599]
[1694102189516,0.62118673,25799.0,25798.0,2.44944599]
[1694102189881,0.48160044,25799.0,25798.0,2.44944599]
[1694102192511,0.13958629,25800.0,25799.0,0.07493699]
[1694102192512,0.23263351,25800.0,25799.0,0.07493699]
[1694102192736,0.23263351,25800.0,25799.0,2.43935599]
[1694102193197,0.09304722,25800.0,25799.0,2.43935599]
[1694102194336,0.09304722,25800.0,25799.0,2.48935599]
[1694102197558,0.25474722,25800.0,25799.0,2.48935599]
[1694102197993,0.39433351,25800.0,25799.0,2.48935599]
[1694102200735,0.25474722,25800.0,25799.0,2.48935599]
[1694102206295,0.09304722,25800.0,25799.0,2.48935599]
[1694102206519,0.32571788,25801.0,25800.0,2.40051599]
[1694102206520,0.09304722,25801.0,25800.0,2.40051599]
[1694102206742,0.09304722,25802.0,25800.0,2.52111599]
[1694102206955,0.62118673,25802.0,25800.0,2.55986599]
[1694102207384,0.48160044,25802.0,25800.0,2.55986599]
[1694102207601,0.62118673,25802.0,25801.0,0.11368699]
[1694102207739,0.52813951,25802.0,25801.0,1.66401299]
[1694102208616,0.69463951,25802.0,25801.0,1.66401299]
[1694102209060,0.78760096,25802.0,25801.0,1.66401299]
[1694102209291,0.78759352,25802.0,25801.0,1.66401299]
[1694102209497,0.78759352,25802.0,25801.0,2.46417599]
[1694102210459,0.78759352,25802.0,25801.0,2.48917599]
[1694102211035,0.69463951,25802.0,25801.0,2.48917599]
[1694102211462,0.7875949,25802.0,25801.0,2.48917599]
[1694102212832,0.52190042,25804.0,25803.0,0.07493699]
[1694102212833,0.000998,25804.0,25803.0,0.07493699]
[1694102213031,0.000998,25804.0,25803.0,0.23428699]
[1694102213032,0.09395339,25804.0,25803.0,0.23428699]
[1694102213237,0.000998,25804.0,25803.0,2.55959599]
[1694102213471,0.09295539,25805.0,25803.0,2.55959599]
[1694102213669,0.09295539,25805.0,25803.0,2.43899599]
[1694102213893,0.09295539,25805.0,25804.0,2.43890599]
[1694102215061,0.09295539,25806.0,25805.0,0.11368699]
[1694102215269,0.09295539,25806.0,25805.0,0.23428699]
[1694102215479,0.09295539,25806.0,25805.0,2.55941599]
[1694102216417,0.25205539,25806.0,25805.0,2.55941599]
[1694102217231,0.1591,25806.0,25805.0,2.55941599]
[1694102217445,0.1591,25806.0,25805.0,2.58441599]
[1694102219531,0.1591,25806.0,25805.0,2.60941599]
[1694102225952,0.1591,25806.0,25805.0,1.83437299]
[1694102227615,0.1591,25806.0,25805.0,2.60941599]
[1694102232630,0.0198,25807.0,25806.0,0.52128699]
[1694102232868,0.0198,25807.0,25806.0,3.28632599]
[1694102234746,0.0198,25807.0,25806.0,3.31132599]
[1694102235272,0.0198,25807.0,25806.0,3.28632599]
[1694102235492,0.0198,25807.0,25806.0,4.42855912]
[1694102236225,0.0198,25807.0,25806.0,4.45355912]
[1694102238110,0.0198,25807.0,25806.0,4.57415912]
[1694102238532,0.0198,25807.0,25806.0,4.16655912]
[1694102241490,0.0198,25807.0,25806.0,2.48872599]
[1694102241786,0.78187182,25807.0,25806.0,2.48872599]
[1694102242003,0.78365053,25807.0,25806.0,0.12368699]
[1694102242230,1.42111622,25807.0,25806.0,0.12368699]
[1694102242449,1.42111622,25807.0,25806.0,0.09868699]
[1694102242450,1.44199622,25807.0,25806.0,0.09868699]
[1694102242662,1.67957209,25807.0,25806.0,0.06375]
[1694102242879,3.55037809,25807.0,25806.0,0.05]
[1694102243093,3.55409809,25807.0,25806.0,0.025]
[1694102243314,3.54941809,25807.0,25806.0,0.03993699]
[1694102243533,3.55145809,25807.0,25806.0,0.025]
[1694102243749,3.64457158,25807.0,25806.0,0.025]
[1694102243960,3.42321761,25807.0,25806.0,0.025]
[1694102244168,3.63363638,25807.0,25806.0,0.025]
[1694102244376,3.38973761,25807.0,25804.0,0.01493699]
[1694102244603,0.53215322,25806.0,25804.0,0.01493699]
[1694102244794,0.53215322,25806.0,25803.0,0.05875]
[1694102244795,2.19543322,25806.0,25803.0,0.05875]
[1694102244941,0.34939934,25805.0,25804.0,0.01493699]
[1694102245135,0.73903256,25805.0,25804.0,0.01493699]
[1694102245354,0.73771256,25805.0,25804.0,0.01493699]
[1694102245563,0.73687256,25805.0,25803.0,0.05368699]
[1694102245760,0.34873934,25805.0,25804.0,0.01493699]
[1694102245956,0.50097934,25805.0,25804.0,0.01493699]
[1694102246155,0.40701934,25805.0,25804.0,0.01493699]
[1694102246388,0.50097934,25805.0,25804.0,0.03993699]
[1694102246643,0.50049934,25805.0,25804.0,0.03993699]
[1694102246853,0.50025934,25805.0,25804.0,0.03993699]
[1694102247031,0.50049934,25805.0,25804.0,0.03993699]
[1694102247261,0.49929934,25805.0,25804.0,0.03993699]
[1694102247457,0.49683934,25805.0,25804.0,0.03993699]
[1694102247616,0.49653934,25805.0,25804.0,0.03993699]
[1694102247833,0.49641934,25805.0,25804.0,0.03993699]
[1694102248037,0.49623934,25805.0,25804.0,0.01493699]
[1694102248240,0.49611934,25805.0,25804.0,0.03993699]
[1694102248454,0.49797934,25805.0,25804.0,0.03993699]
[1694102248659,1.27398234,25805.0,25804.0,0.01493699]
[1694102248882,1.27476234,25805.0,25804.0,0.03493699]
[1694102249116,0.49233934,25805.0,25804.0,0.05993699]
[1694102249283,0.49119934,25805.0,25804.0,0.05993699]
[1694102249635,0.40701934,25805.0,25804.0,0.86000999]
[1694102250046,0.40701934,25805.0,25804.0,0.84000999]
[1694102250287,0.1538,25805.0,25804.0,0.86000999]
[1694102251742,0.54235322,25805.0,25804.0,0.86000999]
[1694102254491,0.54235322,25805.0,25804.0,1.63508299]
[1694102255089,0.54235322,25805.0,25804.0,2.41015599]
[1694102256322,0.54235322,25805.0,25804.0,1.63508299]
[1694102256714,0.54235322,25805.0,25804.0,1.61508299]
[1694102256946,0.54235322,25805.0,25804.0,0.86000999]
[1694102257097,0.54235322,25805.0,25804.0,0.08493699]
[1694102257098,0.61831322,25805.0,25804.0,0.08493699]
[1694102257441,0.61861322,25805.0,25804.0,0.08493699]
[1694102257649,0.61441322,25805.0,25804.0,0.08493699]
[1694102257860,0.61471322,25805.0,25804.0,0.08493699]
[1694102258087,0.61657322,25805.0,25804.0,0.08493699]
[1694102258265,0.61603322,25805.0,25804.0,0.08493699]
[1694102258491,0.61339322,25805.0,25804.0,0.08493699]
[1694102258691,0.61393322,25805.0,25804.0,0.08493699]
[1694102258895,0.61573322,25805.0,25804.0,0.08493699]
[1694102259101,0.61555322,25805.0,25804.0,0.08493699]
[1694102259300,0.61549322,25805.0,25804.0,0.08493699]
[1694102259530,0.61423322,25805.0,25804.0,0.08493699]
[1694102259737,0.61165322,25805.0,25804.0,0.08493699]
[1694102259931,0.61153322,25805.0,25804.0,0.08493699]
[1694102260084,1.38615622,25805.0,25804.0,0.08493699]
[1694102260288,1.39311622,25805.0,25804.0,0.08493699]
[1694102260516,0.61573322,25805.0,25804.0,0.08493699]
[1694102260717,0.61603322,25805.0,25804.0,0.08493699]
[1694102260914,0.61591322,25805.0,25804.0,0.08493699]
[1694102261215,0.61573322,25805.0,25804.0,0.08493699]
[1694102261421,0.61567322,25805.0,25804.0,0.08493699]
[1694102261668,0.61483322,25805.0,25804.0,0.08493699]
[1694102262028,0.61681322,25805.0,25804.0,0.08493699]
[1694102262229,0.71156861,25805.0,25804.0,0.08493699]
[1694102262410,0.71144861,25805.0,25804.0,0.08493699]
[1694102262614,0.71156861,25805.0,25804.0,0.08493699]
[1694102262817,0.71120861,25805.0,25804.0,0.08493699]
[1694102263025,0.70964861,25805.0,25804.0,0.08493699]
[1694102263222,0.70958861,25805.0,25804.0,0.08493699]
[1694102263427,0.70520861,25805.0,25804.0,0.08493699]
[1694102263686,0.70508861,25805.0,25804.0,0.08493699]
[1694102263886,0.70694861,25805.0,25804.0,0.08493699]
[1694102264223,0.61153322,25805.0,25804.0,0.08493699]
[1694102264436,0.70448861,25805.0,25804.0,0.08493699]
[1694102264652,0.70652861,25805.0,25804.0,0.08493699]
[1694102264875,0.70622861,25805.0,25804.0,0.06493699]
[1694102265076,0.70646861,25805.0,25804.0,0.08493699]
[1694102265301,0.60907322,25805.0,25804.0,0.08493699]
[1694102265525,0.54235322,25805.0,25804.0,0.08493699]
[1694102265751,0.54235322,25805.0,25804.0,0.86000999]
[1694102267749,0.54235322,25805.0,25804.0,1.63508299]
[1694102269600,0.54235322,25805.0,25804.0,0.86000999]
[1694102269801,0.38855322,25805.0,25804.0,0.86000999]
[1694102272190,0.48150861,25805.0,25804.0,0.86000999]
[1694102272408,0.38855322,25805.0,25804.0,0.86000999]
[1694102272636,0.48150861,25805.0,25804.0,0.86000999]
[1694102272852,0.48150861,25805.0,25804.0,1.63508299]
[1694102273945,0.48150861,25805.0,25804.0,0.86000999]
[1694102274407,0.38855322,25805.0,25804.0,0.86000999]
[1694102275382,0.38855322,25805.0,25804.0,1.63508299]
[1694102279556,0.48150861,25805.0,25804.0,1.63508299]
[1694102280934,0.48150861,25805.0,25804.0,0.86000999]
[1694102282345,0.64590861,25805.0,25804.0,0.86000999]
[1694102282547,0.7854949,25805.0,25804.0,0.86000999]
[1694102282977,0.64590861,25805.0,25804.0,0.86000999]
[1694102283211,0.7854949,25805.0,25804.0,0.86000999]
[1694102283560,0.69253951,25805.0,25804.0,0.86000999]
[1694102284633,0.8786711,25805.0,25804.0,0.85500999]
[1694102285630,0.73908481,25805.0,25804.0,0.85500999]
[1694102286496,0.97174723,25805.0,25804.0,0.85500999]
[1694102287466,0.78561564,25805.0,25804.0,0.07993699]
[1694102287694,0.55295322,25805.0,25804.0,0.07993699]
[1694102288485,0.78547159,25805.0,25804.0,0.07993699]
[1694102288704,0.55295322,25805.0,25804.0,0.07993699]
[1694102288918,0.7854855,25805.0,25804.0,0.07993699]
[1694102289977,0.55295322,25805.0,25804.0,0.07993699]
[1694102292683,2.45240425,25805.0,25804.0,0.07993699]
[1694102292889,3.30910222,25805.0,25804.0,0.07993699]
[1694102293225,3.31294222,25805.0,25804.0,0.07993699]
[1694102293438,3.30100222,25805.0,25804.0,0.07993699]
[1694102293655,3.30094222,25805.0,25804.0,0.07993699]
[1694102293872,3.30106222,25805.0,25804.0,0.07993699]
[1694102294086,3.30070222,25805.0,25804.0,0.07993699]
[1694102294299,3.30028222,25805.0,25804.0,0.07993699]
[1694102294501,3.29770222,25805.0,25804.0,0.07993699]
[1694102294713,3.29842222,25805.0,25804.0,0.07993699]
[1694102294929,3.29866222,25805.0,25804.0,0.07993699]
[1694102295147,3.29782222,25805.0,25804.0,0.07993699]
[1694102295360,3.29734222,25805.0,25804.0,0.07993699]
[1694102295580,3.29728222,25805.0,25804.0,0.07993699]
[1694102295803,3.29908222,25805.0,25804.0,0.07993699]
[1694102296016,3.29890222,25805.0,25804.0,0.07993699]
[1694102296239,3.29518222,25805.0,25804.0,0.07993699]
[1694102296459,3.29590222,25805.0,25804.0,0.07993699]
[1694102296675,3.29512222,25805.0,25804.0,0.07993699]
[1694102296894,3.29674222,25805.0,25804.0,0.07993699]
[1694102297131,3.29656222,25805.0,25804.0,0.07993699]
[1694102297346,3.29566222,25805.0,25804.0,0.07993699]
[1694102297652,3.29452222,25805.0,25804.0,0.07993699]
[1694102297871,3.30310222,25805.0,25804.0,0.07993699]
[1694102298082,3.29746222,25805.0,25804.0,0.07993699]
[1694102298292,3.29764222,25805.0,25804.0,0.07993699]
[1694102298503,3.29410222,25805.0,25804.0,0.07993699]
[1694102298713,3.29386222,25805.0,25804.0,0.07993699]
[1694102298935,3.29380222,25805.0,25804.0,0.07993699]
[1694102299149,3.29362222,25805.0,25804.0,0.07993699]
[1694102299319,3.29356222,25805.0,25804.0,0.07993699]
[1694102299542,3.29362222,25805.0,25804.0,0.07993699]
[1694102299734,3.29602222,25805.0,25804.0,0.07993699]
[1694102299991,3.29590222,25805.0,25804.0,0.07993699]
[1694102300199,3.29584222,25805.0,25804.0,0.07993699]
[1694102300380,3.29578222,25805.0,25804.0,0.07993699]
[1694102300580,3.29590222,25805.0,25804.0,0.07993699]
[1694102300780,3.29680222,25805.0,25804.0,0.07993699]
[1694102301010,3.29812222,25805.0,25804.0,0.07993699]
[1694102301197,3.29896222,25805.0,25804.0,0.07993699]
[1694102301366,3.29878222,25805.0,25804.0,0.07993699]
[1694102301578,3.29890222,25805.0,25804.0,0.07993699]
[1694102301784,3.29974222,25805.0,25804.0,0.07993699]
[1694102302209,3.29968222,25805.0,25804.0,0.07993699]
[1694102302415,3.29962222,25805.0,25804.0,0.07993699]
[1694102302744,3.29956222,25805.0,25804.0,0.07993699]
[1694102302962,3.30118222,25805.0,25804.0,0.07993699]
[1694102303110,3.30172222,25805.0,25804.0,0.07993699]
[1694102303330,3.30124222,25805.0,25804.0,0.07993699]
[1694102303544,3.30130222,25805.0,25804.0,0.07993699]
[1694102303751,3.33312222,25805.0,25804.0,0.07993699]
[1694102303945,3.61402127,25805.0,25804.0,0.07993699]
[1694102304153,3.61492127,25805.0,25804.0,0.07993699]
[1694102304370,3.61384127,25805.0,25804.0,0.07993699]
[1694102304541,3.61372127,25805.0,25804.0,0.07993699]
[1694102304775,3.61138127,25805.0,25804.0,0.07993699]
[1694102304978,3.61132127,25805.0,25804.0,0.07993699]
[1694102305182,3.32742222,25805.0,25804.0,0.07993699]
[1694102305405,3.06307719,25805.0,25804.0,0.07993699]
[1694102305622,0.55295322,25805.0,25804.0,1.63008299]
[1694102306055,0.78559964,25805.0,25804.0,1.63008299]
[1694102306518,0.55295322,25805.0,25804.0,0.07993699]
[1694102306743,0.63105297,25805.0,25804.0,0.07993699]
[1694102307199,0.78735297,25805.0,25804.0,0.07993699]
[1694102307620,0.85317297,25805.0,25804.0,0.07993699]
[1694102307831,0.85353297,25805.0,25804.0,0.07993699]
[1694102308030,1.62869597,25805.0,25804.0,0.07993699]
[1694102308257,3.43056711,25805.0,25804.0,0.07993699]
[1694102308458,3.44004711,25805.0,25804.0,0.07993699]
[1694102308673,3.43578711,25805.0,25804.0,0.07993699]
[1694102309094,3.43554711,25805.0,25804.0,0.07993699]
[1694102309343,3.43548711,25805.0,25804.0,0.07993699]
[1694102309717,3.43488711,25805.0,25804.0,0.07993699]
[1694102309888,3.43410711,25805.0,25804.0,0.07993699]
[1694102310126,3.43362711,25805.0,25804.0,0.07993699]
[1694102310327,3.43356711,25805.0,25804.0,0.07993699]
[1694102310479,3.43302711,25805.0,25804.0,0.07993699]
[1694102310689,3.43416711,25805.0,25804.0,0.07993699]
[1694102311047,3.43410711,25805.0,25804.0,0.07993699]
[1694102311235,3.43404711,25805.0,25804.0,0.07993699]
[1694102311455,3.43410711,25805.0,25804.0,0.07993699]
[1694102311663,3.43554711,25805.0,25804.0,0.07993699]
[1694102311818,3.43536711,25805.0,25804.0,0.07993699]
[1694102312020,3.43812711,25805.0,25804.0,0.07993699]
[1694102312335,3.43458711,25805.0,25804.0,0.07993699]
[1694102312535,3.43434711,25805.0,25804.0,0.07993699]
[1694102312740,3.43428711,25805.0,25804.0,0.07993699]
[1694102313134,3.43404711,25805.0,25804.0,0.07993699]
[1694102313333,3.43398711,25805.0,25804.0,0.07993699]
[1694102313732,3.43392711,25805.0,25804.0,0.07993699]
[1694102313967,3.43896711,25805.0,25804.0,0.07993699]
[1694102314169,3.43890711,25805.0,25804.0,0.07993699]
[1694102314345,3.43590711,25805.0,25804.0,0.07993699]
[1694102314572,3.43608711,25805.0,25804.0,0.07993699]
[1694102314772,3.43572711,25805.0,25804.0,0.07993699]
[1694102314998,3.27120711,25805.0,25804.0,0.07993699]
[1694102315411,3.54958616,25805.0,25804.0,0.07993699]
[1694102315612,3.54964616,25805.0,25804.0,0.07993699]